Cogmind - Beta 15 @@@ ROGUE MODE // 2025.06.29 @ 21:36:19 Player: cptwinky Result: Escaped! Performance ------------- Evolutions (9) 4500 Regions Visited (24) 4800 Robots Destroyed (375) 1875 Value Destroyed (18569) 18569 Prototype IDs (38) 760 Alien Tech Used (2) 400 Bonus (17781) 17781 TOTAL SCORE: 48685 Bonus ------- High Alert Combat Kills 4426 Follower Combat Kills 1930 Entered Garrisons 1200 Used RIF Installer 3500 Recovered Sigix Corpse 4000 Win 3000 Friendly Fire -275 Cogmind --------- Core Integrity 1514/1600 Matter 270/300 Energy 173/190 System Corruption 1% Temperature Cool (18) Movement Hovering (40) Location To Epsilon Eridani Parts ------- > --- POWER (2) -------- Light Quantum Reactor Matter Drive > --- PROPULSION (7) --- Gravmag Array Combat Gravmag System Improved Antigrav System Improved Antigrav System Improved Antigrav System Cooled Linear Gravjet > --- UTILITY (13) ----- Advanced Heat Sink Medium Storage Unit Enhanced Optical Array Experimental Signal Interpreter Long-range Terrain Scanner Improved Terrain Scan Processor Improved Propulsion Shielding Improved Hacking Suite Improved Hacking Suite Improved System Shield Advanced System Shield Relay Coupler [NC] (25) Advanced Corruption Screen > --- WEAPON (3) ------- Cooled Nova Cannon Sigix Broadsword > --- INVENTORY (10) --- Micro Antimatter Reactor Advanced Sensor Array Advanced Transmission Jammer ECM Suite Advanced Reaction Control System Relay Coupler [Heavy] (10) High-powered Transdimensional Reconstructor Micro-nuke Launcher Sigix Corpse Sigix Corpse Peak State ------------ > --- POWER ------------ Light Quantum Reactor Matter Drive > --- PROPULSION ------- Gravmag Array Combat Gravmag System Improved Antigrav System Improved Antigrav System Experimental Gyrokinetic Inverter Cooled Linear Gravjet > --- UTILITY ---------- Advanced Heat Sink Medium Storage Unit Enhanced Optical Array Advanced Sensor Array Experimental Signal Interpreter Long-range Terrain Scanner Improved Terrain Scan Processor ECM Suite Experimental Utility Shielding Improved Hacking Suite Advanced System Shield Relay Coupler [NC] Advanced Corruption Screen > --- WEAPON ----------- Cooled Nova Cannon Sigix Broadsword > --- INVENTORY -------- Micro Antimatter Reactor Advanced Transmission Jammer Advanced Reaction Control System Improved Propulsion Shielding Improved Hacking Suite Improved System Shield High-powered Transdimensional Reconstructor Micro-nuke Launcher Sigix Corpse Sigix Corpse [Rating: 183] Favorites ----------- Power Heavy Ion Engine Engine Heavy Ion Engine Power Core Reinforced Fission Core Reactor Particle Reactor Propulsion Light Treads Treads Light Treads Leg Aluminum Leg Wheel Armored Wheel Hover Unit Backup Propulsion VII Flight Unit Advanced Surge Thruster Utility Huge Storage Unit Device Improved Cooling System Storage Huge Storage Unit Processor Advanced Targeting Computer Hackware Hacking Suite Protection Hardened Heavy Armor Plating Weapon Antimatter Cannon Energy Gun EM Shotgun Energy Cannon Advanced Plasma Cannon Ballistic Gun Hypervelocity Coil Gun Ballistic Cannon Antimatter Cannon Launcher Rocket Launcher Special Weapon Remote Datajack Slashing Weapon Katana Special Melee Weapon Improved Datajack Build | -11 -10 -10 -9 -9 -9 -8 -8 -8 -8 -8 -7 -7 -6 -6 -5 -5 -4 -4 -4 -3 -3 -2 -2 -1 ------- Run | Yrd Mat Min Mat Min Exi Min Mat Gar Mat Gar Fac Gar Fac Gar Fac Gar Fac Gar Fac Res Qua Res Tes Acc Slots Evolved 18 | . . . 2 . . . 2 . . . 2 . 2 . 2 . 2 . . 2 . 2 . 2 Power 1 | . . . . . . . . . . . . . . . 1 . . . . . . . . . Propulsion 5 | . . . 1 . . . 1 . . . . . . . . . 2 . . . . 1 . . Utility 11 | . . . 1 . . . 1 . . . 2 . 1 . 1 . . . . 2 . 1 . 2 Weapon 1 | . . . . . . . . . . . . . 1 . . . . . . . . . . . Parts Attached 265 | 6 10 1 14 2 . . 5 15 4 9 7 9 13 12 16 13 23 11 53 1 16 7 4 14 Power 25 | 1 2 . 1 . . . . 1 . . . 1 . 1 1 3 2 1 5 . 4 . . 2 Engine 7 | 1 2 . 1 . . . . 1 . . . . . . . 1 . . . . 1 . . . Core 7 | . . . . . . . . . . . . 1 . . . 2 1 1 2 . . . . . Reactor 11 | . . . . . . . . . . . . . . 1 1 . 1 . 3 . 3 . . 2 Propulsion 64 | 2 1 . 3 1 . . 1 9 3 3 2 2 2 4 1 3 7 . 9 . 6 2 1 2 Treads 33 | 2 1 . 3 1 . . 1 5 3 1 1 2 1 1 1 2 6 . 2 . . . . . Leg 2 | . . . . . . . . 1 . . . . 1 . . . . . . . . . . . Wheel 11 | . . . . . . . . 3 . 2 1 . . 3 . 1 1 . . . . . . . Hover 16 | . . . . . . . . . . . . . . . . . . . 5 . 6 2 1 2 Flight 2 | . . . . . . . . . . . . . . . . . . . 2 . . . . . Utility 118 | 1 2 1 4 . . . 2 3 1 2 4 4 8 4 10 7 11 8 26 1 3 5 1 10 Device 35 | . . . 2 . . . . . . . 1 3 3 . 3 2 4 2 10 1 . 2 . 2 Storage 9 | 1 1 . 1 . . . 1 . . . 1 . . . 1 . . . 1 . 1 1 . . Processor 14 | . 1 . . . . . . 1 . . . . . 1 . 1 1 . 5 . . 2 . 2 Hackware 40 | . . . . . . . 1 . . 1 2 . 4 2 4 4 5 5 6 . 2 . . 4 Protection 20 | . . 1 1 . . . . 2 1 1 . 1 1 1 2 . 1 1 4 . . . 1 2 Artifact . | . . . . . . . . . . . . . . . . . . . . . . . . . Weapon 58 | 2 5 . 6 1 . . 2 2 . 4 1 2 3 3 4 . 3 2 13 . 3 . 2 . Energy Gun 12 | . 4 . . . . . . . . 1 . . . . . . . 1 5 . . . 1 . Energy Cannon 5 | . . . . . . . 1 . . . . . . . 1 . . 1 1 . . . 1 . Ballistic Gun 5 | 2 . . . . . . . . . . . . . . . . . . 3 . . . . . Ballistic Cannon 19 | . . . 2 1 . . 1 1 . 2 . 2 1 3 2 . 3 . 1 . . . . . Launcher 4 | . 1 . . . . . . . . . . . 1 . 1 . . . 1 . . . . . Special Weapon 4 | . . . . . . . . . . . 1 . 1 . . . . . 1 . 1 . . . Impact Weapon . | . . . . . . . . . . . . . . . . . . . . . . . . . Slashing Weapon 7 | . . . 3 . . . . 1 . 1 . . . . . . . . 1 . 1 . . . Piercing Weapon . | . . . . . . . . . . . . . . . . . . . . . . . . . Special Melee Weapon 2 | . . . 1 . . . . . . . . . . . . . . . . . 1 . . . Unidentified Prototypes 10 | . 1 . . . . . . . . . . . . . . . . . 2 . 1 2 3 1 Corrupted Parts 1 | . . . . . . . . . . . . . . . . . . . 1 . . . . . System Corruption 1 | . . . . . . . . . . . . . . . . . . . 1 . . . . . Parts Lost 44 | . 1 . . . . . . 4 . 2 . . . 1 . 4 7 4 16 1 . . . 4 Power 5 | . . . . . . . . . . . . . . . . 1 . . 3 . . . . 1 Propulsion 16 | . . . . . . . . 4 . . . . . . . 1 3 . 6 1 . . . 1 Utility 16 | . . . . . . . . . . 1 . . . 1 . 2 3 4 4 . . . . 1 Weapon 7 | . 1 . . . . . . . . 1 . . . . . . 1 . 3 . . . . 1 Highest Loss Streak 7 | . 1 . . . . . . 2 . 1 . . . 1 . 3 3 4 7 1 . . . 4 To Critical Strikes . | . . . . . . . . . . . . . . . . . . . . . . . . . Average Backups 18 | 4 11 14 14 14 14 14 14 20 21 22 23 23 22 23 22 22 20 21 13 4 5 6 7 7 Power . | . 1 2 1 1 1 1 1 . . . 1 . 1 . . . . . . . . . . . Propulsion 1 | 1 2 1 1 1 1 1 . . 3 4 3 3 1 1 2 3 . 2 1 . . . . . Utility 9 | . 1 4 4 5 5 5 5 9 10 10 13 12 11 12 12 10 13 12 8 2 2 2 4 4 Weapon 5 | 1 6 6 6 6 6 6 6 8 7 5 4 5 7 6 6 5 3 4 2 1 . 1 1 . Tool/Special . | . . . . . . . . . . . . . . . . . . . . . . . . . Unused Backups 62 | . 4 3 6 . . . 1 3 1 2 2 5 9 1 . 6 . 2 9 . 2 . 2 4 Power 5 | . 2 . . . . . . . . . . 1 1 . . 1 . . . . . . . . Propulsion 5 | . . 2 . . . . . . . 1 . . 1 . . 1 . . . . . . . . Utility 35 | . . 1 1 . . . 1 1 1 1 1 3 6 1 . 3 . 1 9 . 2 . 1 2 Weapon 15 | . 2 . 4 . . . . 2 . . 1 1 1 . . 1 . 1 . . . . 1 1 Tool/Special 2 | . . . 1 . . . . . . . . . . . . . . . . . . . . 1 Average Slot Usage (%) 86 | . 96 100 99 100 100 100 96 89 89 82 76 75 77 84 89 88 83 78 75 80 86 91 91 90 Engine 5 | . 14 14 11 11 11 11 9 9 9 9 7 6 . . . 3 1 . . . . . . . Core 2 | . . . . . . . . . . . . . 6 3 . 2 5 7 8 4 2 . . . Reactor 1 | . . . . . . . . . . . . . . 2 11 4 2 2 . 4 5 8 8 7 Treads 16 | . 28 28 33 33 33 33 35 22 18 18 15 15 13 11 5 5 15 14 8 . . . . . Wheel 6 | . . . . . . . . 11 17 18 12 7 6 10 13 10 4 . . . . . . . Hover 1 | . . . . . . . . . . . . . . . . . . . 7 14 19 26 26 22 Device 9 | . . . 10 11 11 11 9 4 . . 5 14 11 12 11 10 13 15 15 19 18 12 13 15 Storage 7 | . 14 14 11 11 11 11 9 9 9 9 7 7 6 6 5 5 5 5 3 . . 4 4 4 Processor 6 | . 10 1 . . . . . 4 9 9 7 7 6 11 11 11 8 5 4 9 9 9 13 13 Hackware 4 | . . . . . . . 7 9 9 1 3 . 6 2 4 5 5 8 9 9 12 17 14 12 Protection 6 | . . 12 10 11 11 11 9 8 9 8 7 7 5 6 5 5 2 1 1 4 3 3 3 5 Energy Gun 2 | . 26 28 2 . . . . . . . . . . . . . . . 2 . . . . . Ballistic Cannon 8 | . . . 8 15 11 22 11 8 9 8 7 6 6 8 11 11 11 13 6 . . . . . Slashing Weapon 1 | . . . 9 . . . 5 . . . . . . 2 . . . . . . 3 4 4 3 Peak Build Rating 183 | 6 14 16 23 21 21 20 30 32 32 35 48 60 73 78 92 93 111 114 116 98 144 157 169 183 Average Rating 59 | 5 11 15 20 20 20 20 24 30 31 33 41 52 68 72 84 83 87 107 94 96 126 153 160 173 On Entrance 60 | . 6 14 16 20 21 20 20 30 32 32 35 44 60 71 69 92 72 108 111 94 91 137 154 169 Naked Turns 92 | . . . . . . . . . . . . . . . . . . . 92 . . . . . Heaviest Build 170 | 12 34 42 47 46 46 46 110 110 110 120 121 140 144 149 170 170 168 156 159 33 49 58 58 71 Greatest Support 220 | 40 40 40 60 60 60 60 80 80 24 40 28 40 50 60 44 70 220 215 215 34 69 83 86 86 Greatest Overweight (x) 8 | . . 1 1 . . . 1 7 4 4 5 4 5 8 6 6 7 . 3 1 1 . . 1 Average Overweight (x) 2 | . . . . . . . . 3 4 3 4 3 4 4 4 5 3 . . . . . . . Largest Inventory Capacity 25 | 8 15 15 15 15 15 15 25 25 25 25 25 25 25 25 25 25 25 25 25 5 8 10 10 10 Average Capacity 20 | 7 13 15 15 15 15 15 17 25 25 25 25 25 25 25 25 25 25 25 15 5 5 9 10 10 Most Carried 25 | 5 15 15 15 15 15 15 25 25 25 25 25 25 25 25 25 25 25 25 25 4 8 10 10 10 Average Carried 20 | 4 11 14 14 14 15 15 15 24 24 24 24 24 23 24 24 24 21 24 14 4 5 8 9 9 Final Capacity 25 | 8 15 15 15 15 15 15 25 25 25 25 25 25 25 25 25 25 25 25 5 5 8 10 10 10 Final Carried 25 | 5 14 15 15 15 15 15 25 25 25 25 25 25 22 25 25 24 24 24 5 4 8 10 10 10 Class Distribution -------------------- 38% | Mutant 12% | Botlord-Tank 11% | Bothacker-Mutant 7% | Scavenger-Mutant 6% | Tank 4% | Bothacker-Gunner 4% | Bothacker-Tank 3% | Scavenger-Tank Dominant Class ---------------- Mutant | -10/Materials Mutant | -10/Mines Mutant | -9/Materials Mutant | -9/Mines Mutant | -9/Exiles Mutant | -8/Mines Mutant | -8/Materials Mutant | -8/Garrison Scavenger-Mutant | -8/Materials Mutant | -8/Garrison Bothacker-Mutant | -7/Factory Bothacker-Mutant | -7/Garrison Bothacker-Gunner | -6/Factory Bothacker-Mutant | -6/Garrison Tank | -5/Factory Scavenger-Tank | -5/Garrison Botlord-Tank | -4/Factory Botlord-Tank | -4/Garrison Botlord-Tank | -4/Factory Hacker-Scout | -3/Research Hacker-Assassin | -3/Quarantine Hacker-Scout | -2/Research Hacker-Scout | -2/Testing Hacker-Ninja | -1/Access Resources | -11 -10 -10 -9 -9 -9 -8 -8 -8 -8 -8 -7 -7 -6 -6 -5 -5 -4 -4 -4 -3 -3 -2 -2 -1 ----------- Run | Yrd Mat Min Mat Min Exi Min Mat Gar Mat Gar Fac Gar Fac Gar Fac Gar Fac Gar Fac Res Qua Res Tes Acc Matter Collected 15052 | 330 137 20 463 223 . 37 250 1363 492 1002 451 884 1028 1185 1277 894 986 1570 1750 . 350 120 60 180 Remotely 1335 | . . . . . . . . . . . . . . . 454 . 163 420 298 . . . . . Salvage Created 13310 | 208 677 148 681 172 . 31 373 1229 369 918 526 524 603 918 697 985 499 588 2055 . 603 29 39 438 Parts 651 | 12 33 7 34 11 . . 21 65 27 28 29 29 28 32 38 49 21 26 88 . 43 5 . 25 Haulers Intercepted 11 | . 1 . 5 . . . . . 2 . 1 . 1 . . . . . 1 . . . . . Recyclers Shooed 4 | . . 1 . . . . . . . . . . . . . . 1 . 2 . . . . . Parts Field Recycled 7 | . . . . . . . . . . . . 7 . . . . . . . . . . . . Retrieved Matter 74 | . . . . . . . . . . . . 74 . . . . . . . . . . . . Parts Self-Destructed . | . . . . . . . . . . . . . . . . . . . . . . . . . Prevented . | . . . . . . . . . . . . . . . . . . . . . . . . . Kills | -11 -10 -10 -9 -9 -9 -8 -8 -8 -8 -8 -7 -7 -6 -6 -5 -5 -4 -4 -4 -3 -3 -2 -2 -1 ------- Run | Yrd Mat Min Mat Min Exi Min Mat Gar Mat Gar Fac Gar Fac Gar Fac Gar Fac Gar Fac Res Qua Res Tes Acc Combat Hostiles Destroyed 318 | . 11 5 11 12 . 1 12 34 13 19 12 18 14 19 22 30 14 25 32 . 4 . . 10 Melee 16 | . . . 7 . . . 1 . . . . . . . . . . . . . 4 . . 4 Guns 32 | . 9 5 . . . . . . . . . . . . . . . . 17 . . . . 1 Cannons 203 | . . . 4 4 . 1 7 30 13 19 12 17 10 12 19 13 14 16 10 . . . . 2 AOE 59 | . 2 . . 8 . . 3 4 . . . . 4 7 3 16 . 7 2 . . . . 3 Classes Destroyed 21 | 2 4 1 4 2 . 1 . 3 . . . . . 1 2 . . . . . 1 . . . Worker 9 | . 1 . 1 1 . . . . . . . . . . . . . . 4 . 1 1 . . Builder 4 | . . . . . . . . . . . . . . . 1 . . . 3 . . . . . Tunneler 8 | 6 . . . . . . . . . . 1 . . . . . . . . . . 1 . . Hauler 11 | . 1 . 5 . . . . . 2 . 1 . 1 . . . . . 1 . . . . . Recycler 8 | 1 2 . . . . . . . . . . . 2 . 1 . . . 1 . 1 . . . Mechanic 2 | . . . 1 . . . . . . . . . . . . . 1 . . . . . . . Operator 10 | . . . 1 . . . 2 . . . 1 . . . 3 . . . . . 1 . 1 1 Watcher 6 | . 1 . 1 . . . . . 1 . . . . . . . 2 . . . . . . 1 Swarmer 86 | . . 3 . 2 . . 4 10 5 . . 6 4 8 4 15 4 9 4 . . . . 8 Cutter 7 | . . . . . . . . 1 . . . 3 . . . 3 . . . . . . . . Saboteur 1 | . . . . . . . . . . . . . . . 1 . . . . . . . . . Grunt 113 | . 11 2 7 2 . . 5 11 3 7 8 4 5 7 9 3 5 7 17 . . . . . Brawler 10 | . . . 2 1 . . . . . . . . . . 1 1 . 4 1 . . . . . Duelist 5 | . . . . . . . . 3 . . . . . 1 . . . . 1 . . . . . Researcher 3 | . . . . . . . . . . . . . . . . . . . . . 3 . . . Sentry 31 | . . . 2 . . . . 4 5 7 1 3 1 1 . 4 . 2 1 . . . . . Demolisher 2 | . . . . 1 . . . . . . . . . . . . . 1 . . . . . . Hunter 19 | . . . . . . 1 3 3 . 3 1 2 1 . . 4 . . 1 . . . . . Programmer 34 | . . . . . . . . 2 . 2 2 . 3 1 7 . 5 1 5 . 4 . . 2 Behemoth 4 | . . . . . . . . . . . . . . 1 . . . 1 2 . . . . . Assembled 6 | . . . . 6 . . . . . . . . . . . . . . . . . . . . Thug 1 | . . . . . . . . . . 1 . . . . . . . . . . . . . . Butcher 1 | . . . . . . . . 1 . . . . . . . . . . . . . . . . Best Kill Streak 10 | 2 6 3 6 5 . 1 5 7 5 2 4 4 4 5 6 6 7 6 10 . 3 1 2 3 Combat Bots Only 9 | . 3 3 5 5 . 1 4 7 4 2 4 4 4 5 5 6 7 6 9 . 3 . . 3 Max Kills in Single Turn 5 | 1 3 1 1 3 . 1 4 2 1 1 1 2 3 3 5 3 1 4 3 . 1 1 1 3 Gunslinging . | . . . . . . . . . . . . . . . . . . . . . . . . . Exploded 4 | . 1 . . 3 . . 3 2 . . . . 3 3 3 3 . 4 1 . . . . 3 Melee 1 | . . . 1 . . . 1 . . . . . . . . . . . . . 1 . . 1 Uniques/NPCs Destroyed . | . . . . . . . . . . . . . . . . . . . . . . . . . Combat | -11 -10 -10 -9 -9 -9 -8 -8 -8 -8 -8 -7 -7 -6 -6 -5 -5 -4 -4 -4 -3 -3 -2 -2 -1 -------- Run | Yrd Mat Min Mat Min Exi Min Mat Gar Mat Gar Fac Gar Fac Gar Fac Gar Fac Gar Fac Res Qua Res Tes Acc Hostile Shots Fired 1674 | . 45 31 43 22 . 6 39 120 52 129 47 83 80 92 73 129 97 119 318 7 10 . . 132 Missed 517 | . 20 8 9 3 . 2 15 36 19 28 23 28 22 30 23 38 27 37 96 3 7 . . 43 Hits 1157 | . 25 23 34 19 . 4 24 84 33 101 24 55 58 62 50 91 70 82 222 4 3 . . 89 Melee 23 | . . . 3 . . . . 9 . . . 5 . 1 . 1 . . 4 . . . . . Projectile 1134 | . 25 23 31 19 . 4 24 75 33 101 24 50 58 61 50 90 70 82 218 4 3 . . 89 AOE 19 | . . . . 6 . . . 2 . . . . . . 1 2 2 6 . . . . . . Critical Strikes 50 | . . . 2 . . . 3 8 . 6 1 6 4 3 1 3 1 4 6 . . . . 2 Part Disruptions 2 | . . . . . . . . . . . . 1 . . 1 . . . . . . . . . Damage Taken 19043 | . 300 243 468 487 . 73 363 1058 390 1243 288 608 813 768 807 1355 1376 1462 4622 66 75 62 . 2116 Core 1351 | . 61 40 38 107 . 19 . 118 12 123 10 39 95 20 30 110 40 57 346 . . . . 86 Absorbed by Shields 2419 | . . . . . . . . 12 . 259 . 193 80 245 319 435 140 392 344 . . . . . Reduced by Siege Mode 285 | . . . . . . . . . . . . . . . 8 . 4 50 223 . . . . . Redirected to Shielding 292 | . . . . . . . . . . . . . . . . . . . 136 . . . . 156 Ignored by Resistances 79 | . . . . . . . . 13 57 9 . . . . . . . . . . . . . . Regen/Repaired (Parts) 2312 | . 157 . 263 . . . . . 43 . . . 306 . . . 169 . 568 . . 62 . 744 Core Remaining (%) 81 | 100 . 59 . . . 59 . . . 54 . 93 . 86 . 86 . . 61 . 100 . 100 94 Volleys Fired 1120 | 35 31 13 19 20 . 3 28 131 43 110 41 73 78 61 68 68 53 80 127 . 4 . 5 29 Largest 3 | 2 2 2 2 2 . 2 2 1 1 1 1 1 1 2 3 3 3 3 3 . 1 . 1 1 Hottest 182 | 40 90 90 66 66 . 66 66 50 50 50 50 65 65 98 182 182 182 122 162 . 110 . 110 90 Shots Fired 1644 | 70 60 26 38 30 . 6 44 132 43 110 41 74 78 70 130 124 102 161 267 . 4 . 5 29 Gun 308 | 70 58 26 . . . . . . . . . . . . . . . . 149 . . . . 5 Cannon 1195 | . . . 38 25 . 6 42 128 43 110 38 74 55 59 111 106 84 144 103 . 1 . 5 23 Launcher 38 | . 2 . . 5 . . 2 4 . . . . 2 6 . 11 . 3 3 . . . . . Special 103 | . . . . . . . . . . . 3 . 21 5 19 7 18 14 12 . 3 . . 1 Kinetic 1193 | 70 . . 38 25 . 6 32 128 43 110 38 74 55 59 85 59 73 128 170 . . . . . Thermal 199 | . . . . . . . . . . . . . . . 26 47 11 . 81 . 1 . 5 28 Explosive 38 | . 2 . . 5 . . 2 4 . . . . 2 6 . 11 . 3 3 . . . . . Electromagnetic 111 | . 58 26 . . . . 10 . . . . . . . . . . 16 1 . . . . . Robot Hit Streak 31 | 9 10 7 12 5 . 4 11 11 9 19 9 5 22 26 20 25 10 16 31 . 4 . . 7 Robot Miss Streak 7 | 3 3 5 2 3 . 2 4 5 1 4 3 2 4 5 2 3 7 3 5 . 1 . . 2 Penetration Max 3 | . . . . . . . . 1 . . 1 1 . . . . 1 1 3 . . . . . Secondary Targets 6 | . 1 2 . . . . . . . . . . . . . . . . 3 . . . . . Max Gunslinging Chain 1 | . 1 1 . . . . . . . . . . . . . . . . 1 . . . . . Shots Hit Robots 1080 | 48 49 21 54 10 4 4 32 69 34 73 26 34 53 53 87 56 57 109 171 . 13 2 3 18 Core Hits 530 | 16 37 11 21 18 . 4 21 38 13 26 14 19 17 24 33 47 24 39 90 . 6 1 1 10 Critical Kills 31 | 1 . . . . . . . . . . . . . . 1 8 2 3 15 . . . . 1 Critical Parts Destroyed 42 | . . . . . . . . . . . . . . . . 4 3 8 27 . . . . . Critical Strikes 149 | 1 . . 4 . . 2 1 11 7 11 2 4 4 7 4 14 6 16 54 . . . . 1 Burn 2 | . . . . . . . . . . . . . . . . . . . 2 . . . . . Meltdown 1 | . . . . . . . . . . . . . . . . 1 . . . . . . . . Destroy 79 | 1 . . . . . . . . . . . . . . 1 11 5 12 48 . . . . 1 Blast 54 | . . . 2 . . 2 . 10 7 7 2 4 4 2 3 2 1 4 4 . . . . . Sever 13 | . . . 2 . . . 1 1 . 4 . . . 5 . . . . . . . . . . Melee Attacks 181 | . . . 35 2 4 . 2 9 . 13 . . . 26 4 11 2 . 16 . 22 2 6 27 Impact . | . . . . . . . . . . . . . . . . . . . . . . . . . Slashing 176 | . . . 34 2 . . 2 9 . 13 . . . 26 4 11 2 . 16 . 22 2 6 27 Piercing . | . . . . . . . . . . . . . . . . . . . . . . . . . Sneak Attacks 30 | . . . 9 . 4 . 1 . . . . . . 1 3 . 2 . . . 7 2 . 1 Combat Hostiles 2 | . . . . . . . . . . . . . . 1 . . . . . . 1 . . . Follow-up Attacks 2 | . . . 2 . . . . . . . . . . . . . . . . . . . . . Damage Inflicted 46488 | 369 1143 255 1699 691 . 88 1059 4148 1880 4066 1422 1822 2781 3786 3419 3093 1913 3992 5374 . 1447 280 316 1445 Guns 3295 | 369 704 238 . . . . . . . . . . . . . . . . 1855 . . . . 129 Cannons 29732 | . . . 580 247 . 61 634 3418 1880 3400 1422 1822 2556 1785 2790 1473 1775 3291 2428 . . . . 170 Explosions 6592 | . 439 . . 438 . . 319 270 . . . . 225 794 310 1620 . 701 1052 . . . . 424 Melee 6762 | . . . 1119 . . . 106 460 . 664 . . . 1191 319 . 138 . . . 1447 280 316 722 Ramming 107 | . . 17 . 6 . 27 . . . 2 . . . 16 . . . . 39 . . . . . Kinetic 28988 | 369 . . 580 247 . 61 424 3418 1880 3400 1422 1822 2556 1785 2426 914 1607 3081 2996 . . . . . Thermal 3206 | . 99 . . . . . 50 . . . . . . . 674 559 168 . 1357 . . . . 299 Explosive 6030 | . 340 . . 438 . . 269 270 . . . . 225 794 . 1620 . 701 949 . . . . 424 Electromagnetic 1395 | . 704 238 . . . . 210 . . . . . . . . . . 210 33 . . . . . Impact . | . . . . . . . . . . . . . . . . . . . . . . . . . Slashing 6762 | . . . 1119 . . . 106 460 . 664 . . . 1191 319 . 138 . . . 1447 280 316 722 Piercing . | . . . . . . . . . . . . . . . . . . . . . . . . . Highest Corruption 12 | . . . . . . . . 5 5 5 2 3 1 1 2 2 1 2 12 . 1 . . 1 Average Corruption 3 | . . . . . . . . 4 5 5 2 2 1 1 1 1 1 1 6 . 1 . . 1 Corruption Purged 2 | . . . . . . . . . . . . . . . . 2 . . . . . . . . Corruption Blocked 5 | . . . . . . . . . . . . . . . . . . . . . . . . 5 Effects 266 | . . . . . . . . 57 18 35 1 21 . 14 14 16 2 18 65 . 2 . . 3 Message Errors 69 | . . . . . . . . 14 3 10 1 5 . 1 2 1 1 10 19 . 2 . . . Matter Fused 61 | . . . . . . . . 17 5 9 . 5 . 6 5 5 . 3 6 . . . . . Heat Flow Errors 29 | . . . . . . . . 7 3 3 . 1 . . 1 4 . . 9 . . . . 1 Energy Discharges 32 | . . . . . . . . 5 3 4 . 4 . 3 2 . 1 1 9 . . . . . Parts Rejected 4 | . . . . . . . . 1 . . . . . . 1 . . 1 1 . . . . . Parts Fused 2 | . . . . . . . . 1 . . . . . . . 1 . . . . . . . . Data Loss (minor) 32 | . . . . . . . . 7 3 2 . 4 . 2 2 1 . 1 10 . . . . . Data Loss (major) 9 | . . . . . . . . 2 . 2 . 1 . 1 . 1 . . 2 . . . . . Misfires 13 | . . . . . . . . 2 . 2 . 1 . . 1 2 . 1 3 . . . . 1 Alerts 6 | . . . . . . . . . 1 1 . . . 1 . 1 . . 2 . . . . . Weapon Failures 9 | . . . . . . . . 1 . 2 . . . . . . . 1 4 . . . . 1 Overload Shots . | . . . . . . . . . . . . . . . . . . . . . . . . . Overflow Damage 3659 | . 7 . 51 27 . . 19 289 198 350 133 106 283 452 194 89 128 168 110 . 463 113 188 291 Projectiles 1724 | . . . . . . . . 264 198 350 133 106 274 182 28 32 80 69 8 . . . . . Explosions 561 | . 7 . . 27 . . 19 4 . . . . 9 43 96 57 . 99 102 . . . . 98 Melee 1374 | . . . 51 . . . . 21 . . . . . 227 70 . 48 . . . 463 113 188 193 Knockbacks 118 | . . . . . . 2 13 15 7 8 5 10 9 6 17 2 11 9 4 . . . . . Impact . | . . . . . . . . . . . . . . . . . . . . . . . . . Kinetic 107 | . . . . . . 2 10 14 6 8 3 9 9 6 15 2 11 8 4 . . . . . Secondary 11 | . . . . . . . 3 1 1 . 2 1 . . 2 . . 1 . . . . . . Self-Inflicted Damage 381 | . . . . 98 . . . . . . . . . . 69 90 . . 46 . . . . 78 Shots 10 | . . . . 3 . . . . . . . . . . 2 2 . . 2 . . . . 1 Rammed 16 | . . 5 . 2 . 2 . . . 1 . . . 2 . . . . 4 . . . . . Targets Rammed 17 | . . 5 . 3 . 2 . . . 1 . . . 2 . . . . 4 . . . . . Kicked . | . . . . . . . . . . . . . . . . . . . . . . . . . Crushed 1 | . . . . 1 . . . . . . . . . . . . . . . . . . . . Highest Temperature 380 | . 278 320 129 45 . 45 128 232 232 262 14 107 14 . 380 345 296 74 340 . . 10 152 248 Average Temperature 68 | . 95 151 39 20 . 24 41 33 38 67 10 46 9 . 104 115 78 24 82 . . 2 67 112 Received Heat Transfer 3492 | . 165 84 204 62 . . 90 180 126 412 126 133 272 150 130 160 238 240 630 . . . . 90 Effects 11 | . . 3 . . . . . . . . . . . . 1 3 1 . 2 . . . . 1 Energy Bleed 4 | . . . . . . . . . . . . . . . . 2 1 . 1 . . . . . Interference 3 | . . 2 . . . . . . . . . . . . . . . . . . . . . 1 Matter Decay 1 | . . . . . . . . . . . . . . . . . . . 1 . . . . . Short Circuit 2 | . . 1 . . . . . . . . . . . . . 1 . . . . . . . . Damage (minor) 1 | . . . . . . . . . . . . . . . 1 . . . . . . . . . Siege Activations 11 | . . . . . . . . . . . . . . . 1 4 1 2 3 . . . . . Total Turns 192 | . . . . . . . . . . . . . . . 21 57 10 42 62 . . . . . Longest Duration 29 | . . . . . . . . . . . . . . . 21 24 10 25 29 . . . . . Martial Activations . | . . . . . . . . . . . . . . . . . . . . . . . . . Shielding Activations . | . . . . . . . . . . . . . . . . . . . . . . . . . Robots Disrupted . | . . . . . . . . . . . . . . . . . . . . . . . . . Combat Hostiles . | . . . . . . . . . . . . . . . . . . . . . . . . . Robots Corrupted 4 | . . . . . . . 1 . . . . 1 . . . . . 2 . . . . . . Combat Hostiles 4 | . . . . . . . 1 . . . . 1 . . . . . 2 . . . . . . Parts Fried 5 | . 2 1 . . . . . . . . . 1 . . . . . 1 . . . . . . Impact Corruptions 3 | . . . . . . . . 1 . . . 1 . . . . . 1 . . . . . . Robots Melted 2 | . . . . . . . . . . . . . . . . 1 . . 1 . . . . . Combat Hostiles 2 | . . . . . . . . . . . . . . . . 1 . . 1 . . . . . Parts Melted 11 | . . . . . . . . . . . . . . . 1 2 . . 8 . . . . . Heat Transferred 4923 | . 100 . . . . . 50 . . . . . . . 700 850 250 . 2640 . . . . 333 Parts Sabotaged . | . . . . . . . . . . . . . . . . . . . . . . . . . Parts Stolen . | . . . . . . . . . . . . . . . . . . . . . . . . . Parts Stripped . | . . . . . . . . . . . . . . . . . . . . . . . . . Power Chain Reactions 4 | . 2 . . . . . 1 . . . . . . . . . . . 1 . . . . . Alert | -11 -10 -10 -9 -9 -9 -8 -8 -8 -8 -8 -7 -7 -6 -6 -5 -5 -4 -4 -4 -3 -3 -2 -2 -1 ------- Run | Yrd Mat Min Mat Min Exi Min Mat Gar Mat Gar Fac Gar Fac Gar Fac Gar Fac Gar Fac Res Qua Res Tes Acc Maximum Alert Level 5 | . . . . . . . 1 5 3 4 2 3 2 3 3 4 3 5 4 3 2 . . 1 Low Security (%) 32 | 100 100 100 100 100 . 100 87 6 . . 17 18 62 16 . . . . . . . 100 100 38 Level 1 15 | . . . . . . . 12 4 5 8 4 21 28 18 76 25 . . . . 98 . . 61 Level 2 15 | . . . . . . . . 14 40 29 78 35 9 25 22 12 1 9 13 . 1 . . . Level 3 23 | . . . . . . . . 24 54 46 . 24 . 39 1 15 98 23 66 100 . . . . Level 4 11 | . . . . . . . . 34 . 15 . . . . . 47 . 60 20 . . . . . Level 5 1 | . . . . . . . . 16 . . . . . . . . . 6 . . . . . . High Security . | . . . . . . . . . . . . . . . . . . . . . . . . . Max Security . | . . . . . . . . . . . . . . . . . . . . . . . . . Peak Influence 2124 | 5 118 60 122 134 . 50 222 2124 1035 1207 633 901 472 915 714 1504 996 1736 1513 730 404 166 106 291 Initial 1035 | . . 27 . . . . 11 80 1035 367 633 87 472 79 480 211 789 656 911 715 399 166 59 54 Average 543 | . 56 5 29 17 . 9 96 1082 724 765 468 486 168 556 338 896 881 1240 944 720 337 136 85 182 Influence Increases 15168 | 35 495 120 398 272 . 50 389 2144 622 860 379 834 520 886 908 1513 921 1320 1562 15 286 10 92 537 Destroy 0b10 Robot/C 7380 | . 220 100 220 160 . 20 260 840 340 400 240 400 300 420 480 800 500 700 640 . 140 . . 200 Destroy 0b10 Robot/NC 395 | 35 25 . 45 5 . . 10 40 25 15 15 5 15 20 25 5 25 . 50 . 15 10 5 5 Destroy Leader 1076 | . 64 20 72 30 . 10 60 30 96 40 62 40 72 40 70 50 106 50 112 . 20 . . 32 Allied During Kill 404 | . . . . 23 . 5 2 61 13 3 . 6 2 5 13 84 77 94 16 . . . . . Trap Triggered on 0b10 150 | . . . 10 . . . . 40 . 10 . 40 . . 50 . . . . . . . . . Successful Hack 477 | . 46 . 19 . . . 7 56 27 21 32 16 41 . 17 . 52 14 60 . . . 18 51 Select Force Hacks 170 | . 60 . . . . . 30 . . . . . . . . . 30 . 50 . . . . . Disable Machine 1020 | . 30 . 15 15 . 15 . 90 60 60 15 45 30 . 135 60 60 60 180 . 75 . 60 15 Anti-Garrison Action 1800 | . . . . . . . . 700 . 200 . 200 . 200 . 250 . 250 . . . . . . Destroy Structure 1216 | . 20 . 2 39 . . 20 107 16 66 15 52 30 81 118 234 56 122 94 . 6 . 9 129 Partial Spotted 90 | . . . . . . . . . . . . . . . . . . . 60 15 . . . 15 Lose Combat Pursuer 990 | . 30 . 15 . . . . 180 45 45 . 30 30 120 . 30 15 30 300 . 30 . . 90 Influence Decreases 14913 | 35 424 191 398 154 118 20 295 144 2181 218 1461 58 1307 85 1521 311 1487 522 1935 668 699 201 107 373 Entered New Map 6110 | . . 44 . . 118 . 19 44 1089 198 574 38 429 35 435 91 715 282 825 648 311 131 47 37 Time Decay 5212 | 35 414 147 398 154 . 20 256 . 392 . 422 . 582 . 556 . 542 . 630 10 238 70 60 286 Lost Part 440 | . 10 . . . . . . 40 . 20 . . . 10 . 40 70 40 160 10 . . . 40 Lost Ally 1176 | . . . . . . . 20 60 100 . 40 20 146 40 30 180 160 200 170 . . . . 10 Purge Threat 1975 | . . . . . . . . . 600 . 425 . 150 . 500 . . . 150 . 150 . . . Squads Dispatched 70 | . 4 . 2 . . . 4 . 4 . 5 . 7 . 6 . 12 . 18 1 1 1 . 5 Investigation 17 | . 2 . . . . . 3 . 2 . 2 . 2 . 1 . 3 . 1 . . . . 1 Extermination 19 | . . . . . . . . . . . 2 . 3 . 3 . 3 . 4 . 1 1 . 2 Reinforcement 21 | . 2 . 2 . . . 1 . 1 . 1 . 2 . 1 . 2 . 6 1 . . . 2 Assault 12 | . . . . . . . . . 1 . . . . . 1 . 4 . 6 . . . . . Garrison 1 | . . . . . . . . . . . . . . . . . . . 1 . . . . . Intercept . | . . . . . . . . . . . . . . . . . . . . . . . . . Searches Triggered . | . . . . . . . . . . . . . . . . . . . . . . . . . Construction Impeded 4 | . . . . . . . . . 1 . . . . . . . 1 . 2 . . . . . Haulers Reinforced 3 | . . . . . . . . . . . . . 1 . . . . . 2 . . . . . Active Scanning Responses . | . . . . . . . . . . . . . . . . . . . . . . . . . Cargo Convoy Interrupts . | . . . . . . . . . . . . . . . . . . . . . . . . . Alert ID Control Effect 7 | . . . . . . . . . . . . . . . . . . 2 5 . . . . . Stealth | -11 -10 -10 -9 -9 -9 -8 -8 -8 -8 -8 -7 -7 -6 -6 -5 -5 -4 -4 -4 -3 -3 -2 -2 -1 --------- Run | Yrd Mat Min Mat Min Exi Min Mat Gar Mat Gar Fac Gar Fac Gar Fac Gar Fac Gar Fac Res Qua Res Tes Acc Distress Signals 19 | . 2 . . . . . 1 . 4 1 . . 3 . . . 3 . 4 1 . . . . Communications Jammed 196 | . . . . . . . . . . . . . . . . . 59 . 136 . . . . 1 Distress Signals 196 | . . . . . . . . . . . . . . . . . 59 . 136 . . . . 1 Times Spotted 599 | . 24 5 29 15 . 1 18 39 25 21 17 24 34 27 35 42 52 40 95 6 12 . 4 34 Peak Tracking Total 13 | . 4 2 6 5 . 1 5 6 5 5 4 4 7 5 5 11 7 6 13 6 5 . 3 9 Tactical Retreats 40 | . 1 . 1 . . . . 7 3 2 . 2 1 5 . 1 1 1 11 . 1 . . 3 Traps | -11 -10 -10 -9 -9 -9 -8 -8 -8 -8 -8 -7 -7 -6 -6 -5 -5 -4 -4 -4 -3 -3 -2 -2 -1 ------- Run | Yrd Mat Min Mat Min Exi Min Mat Gar Mat Gar Fac Gar Fac Gar Fac Gar Fac Gar Fac Res Qua Res Tes Acc Traps Triggered 57 | . . . . . . . 1 9 1 10 1 7 1 9 . 8 1 3 3 . . 1 2 . Indirectly . | . . . . . . . . . . . . . . . . . . . . . . . . . Trap Hack Attempts 143 | . . . 65 . . . . . . . . . 38 . 40 . . . . . . . . . Triggered . | . . . . . . . . . . . . . . . . . . . . . . . . . Disarmed 7 | . . . . . . . . . . . . . 7 . . . . . . . . . . . Reprogrammed 14 | . . . 9 . . . . . . . . . 3 . 2 . . . . . . . . . Reused 11 | . . . 1 . . . . 4 . 1 . 4 . . 1 . . . . . . . . . Traps Extracted 12 | . . . 9 . . . . . . . . 3 . . . . . . . . . . . . Installed 19 | . . . 4 . . . 1 5 . 2 . 7 . . . . . . . . . . . . Triggered 15 | . . . 1 . . . . 4 . 1 . 4 . . 5 . . . . . . . . . Most Traps Carried 6 | . . . 5 6 6 6 6 6 6 6 4 4 . . . . . . . . . . . . Machines | -11 -10 -10 -9 -9 -9 -8 -8 -8 -8 -8 -7 -7 -6 -6 -5 -5 -4 -4 -4 -3 -3 -2 -2 -1 ---------- Run | Yrd Mat Min Mat Min Exi Min Mat Gar Mat Gar Fac Gar Fac Gar Fac Gar Fac Gar Fac Res Qua Res Tes Acc Machines Disabled 86 | . 2 . 1 1 . 1 . 12 4 7 1 5 2 3 9 6 4 6 12 . 5 . 4 1 Max in Single Turn 5 | . 1 . 1 . . 1 . 1 1 2 1 1 1 1 5 1 1 1 2 . 1 . 1 1 Garrison Access 6 | . . . . . . . . . . . . . . . . . 1 . 2 . . . . 3 Garrison Relay 14 | . . . . . . . . 4 . 2 . 2 . 2 . 2 . 2 . . . . . . Machines Repaired . | . . . . . . . . . . . . . . . . . . . . . . . . . Machines Dismantled . | . . . . . . . . . . . . . . . . . . . . . . . . . Machines Sabotaged . | . . . . . . . . . . . . . . . . . . . . . . . . . Overloaded Fab Kills 10 | . . . . . . . . . . . . . . . . . . . 10 . . . . . Hacking | -11 -10 -10 -9 -9 -9 -8 -8 -8 -8 -8 -7 -7 -6 -6 -5 -5 -4 -4 -4 -3 -3 -2 -2 -1 --------- Run | Yrd Mat Min Mat Min Exi Min Mat Gar Mat Gar Fac Gar Fac Gar Fac Gar Fac Gar Fac Res Qua Res Tes Acc Machines Accessed 123 | . 9 1 7 . 1 . 4 3 12 3 10 3 14 2 7 4 8 1 17 1 4 . 2 10 Terminals 73 | . 6 . 5 . . . 2 3 9 3 5 3 6 2 4 4 1 1 8 . 4 . 2 5 Fabricators 10 | . . . . . . . . . . . 3 . 2 . . . 2 . 3 . . . . . Repair Stations 8 | . 1 . 2 . . . . . 1 . . . 2 . . . 1 . 1 . . . . . Recycling Units 16 | . 2 . . . . . . . . . . . 3 . 2 . 2 . 4 1 . . . 2 Scanalyzers 3 | . . . . . . . 1 . 1 . 1 . . . . . . . . . . . . . Garrison Access 11 | . . . . . . . 1 . 1 . 1 . 1 . 1 . 2 . 1 . . . . 3 Total Hacks 316 | . 27 1 21 . 1 . 18 6 33 4 27 5 41 2 16 8 26 3 40 2 9 . 6 20 Successful 147 | . 19 1 13 . 1 . 12 5 15 2 12 3 16 . 4 . 16 1 14 . 1 . 1 11 Failed 168 | . 8 . 8 . . . 5 1 18 2 15 2 25 2 12 8 10 2 26 2 8 . 5 9 Catastrophic 33 | . . . 3 . . . 1 . 1 1 3 1 4 2 2 4 1 . 6 . 1 . 1 2 Database Lockouts 1 | . . . . . . . 1 . . . . . . . . . . . . . . . . . Manual 125 | . 13 . 10 . . . 8 3 21 . 15 1 8 . 5 . 14 2 15 . 3 . 3 4 Terminals 189 | . 14 . 13 . . . 8 6 27 4 16 5 22 2 9 8 2 3 23 . 9 . 6 12 Fabricators 23 | . . . . . . . . . . . 5 . 5 . . . 8 . 5 . . . . . Repair Stations 25 | . 6 . 8 . . . . . 2 . . . 4 . . . 2 . 3 . . . . . Recycling Units 36 | . 7 . . . . . . . . . . . 7 . 4 . 6 . 7 2 . . . 3 Scanalyzers 13 | . . . . . . . 8 . 2 . 3 . . . . . . . . . . . . . Garrison Access 28 | . . . . . . . 2 . 2 . 3 . 3 . 3 . 8 . 2 . . . . 5 Terminal Hacks 52 | . 6 1 4 . 1 . 2 2 9 2 4 2 9 . 1 . . 1 4 . 1 . 1 2 Record 1 | . . . . . 1 . . . . . . . . . . . . . . . . . . . Robot Schematic 2 | . . . . . . . . . . . 2 . . . . . . . . . . . . . Robot Analysis 5 | . 3 . 1 . . . 1 . . . . . . . . . . . . . . . . . Prototype ID Bank 2 | . 1 . . . . . . . . . . . . . . . . . 1 . . . . . Open Door 5 | . . 1 . . . . . 1 . 1 . 1 . . . . . . . . . . . 1 Branch Access Points 3 | . . . 1 . . . 1 . . . . . . . . . . . . . . . . 1 Emergency Access Points 3 | . . . . . . . . 1 . 1 . 1 . . . . . . . . . . . . Terminal Index 1 | . . . . . . . . . 1 . . . . . . . . . . . . . . . Unreport Threat 8 | . . . . . . . . . 4 . 1 . 1 . . . . . 1 . 1 . . . Locate Traps 8 | . 2 . 2 . . . . . . . . . 3 . . . . . . . . . 1 . Disarm Traps 1 | . . . . . . . . . . . . . 1 . . . . . . . . . . . Dispatch Records 1 | . . . . . . . . . . . . . . . . . . . 1 . . . . . Recall Investigation 1 | . . . . . . . . . 1 . . . . . . . . . . . . . . . Recall Extermination 1 | . . . . . . . . . . . . . 1 . . . . . . . . . . . Registered Components 1 | . . . . . . . . . . . . . 1 . . . . . . . . . . . Zone Layout 8 | . . . . . . . . . 3 . 1 . 2 . 1 . . . 1 . . . . . Security Stations 1 | . . . . . . . . . . . . . . . . . . 1 . . . . . . Fabricator Hacks 8 | . . . . . . . . . . . 3 . . . . . 3 . 2 . . . . . Network Status 4 | . . . . . . . . . . . 1 . . . . . 1 . 2 . . . . . Load Schematic 2 | . . . . . . . . . . . 1 . . . . . 1 . . . . . . . Build 2 | . . . . . . . . . . . 1 . . . . . 1 . . . . . . . Repair Station Hacks 22 | . 6 . 8 . . . . . 2 . . . 2 . . . 2 . 2 . . . . . Scan Component 11 | . 3 . 4 . . . . . 1 . . . 1 . . . 1 . 1 . . . . . Repair 11 | . 3 . 4 . . . . . 1 . . . 1 . . . 1 . 1 . . . . . Recycling Unit Hacks 10 | . 2 . . . . . . . . . . . 2 . 1 . 1 . 2 . . . . 2 Process 1 | . . . . . . . . . . . . . 1 . . . . . . . . . . . Retrieve Components 9 | . 2 . . . . . . . . . . . 1 . 1 . 1 . 2 . . . . 2 Scanalyzer 8 | . . . . . . . 6 . . . 2 . . . . . . . . . . . . . Insert Component 4 | . . . . . . . 3 . . . 1 . . . . . . . . . . . . . Analyze 4 | . . . . . . . 3 . . . 1 . . . . . . . . . . . . . Garrison Access Hacks 16 | . . . . . . . 1 . 1 . 1 . 1 . 1 . 4 . 2 . . . . 5 Unlock Access 6 | . . . . . . . 1 . 1 . 1 . 1 . 1 . 1 . . . . . . . Seal Access 5 | . . . . . . . . . . . . . . . . . 1 . 1 . . . . 3 Coupler Status 5 | . . . . . . . . . . . . . . . . . 2 . 1 . . . . 2 Unauthorized Hacks 31 | . 5 . 1 . . . 3 3 3 . 2 1 2 . 1 . 6 . 2 . . . . 2 Terminals 15 | . 3 . 1 . . . 1 3 2 . 1 1 1 . . . . . 1 . . . . 1 Track 1 | . . . . . . . . 1 . . . . . . . . . . . . . . . . Assimilate 1 | . . . . . . . . . . . . . . . . . . . . . . . . 1 Botnet 7 | . 1 . 1 . . . 1 . 1 . 1 . 1 . . . . . 1 . . . . . Disrupt 4 | . 1 . . . . . . 2 . . . 1 . . . . . . . . . . . . Operators 1 | . . . . . . . . . 1 . . . . . . . . . . . . . . . Skim 1 | . 1 . . . . . . . . . . . . . . . . . . . . . . . Fabricators 5 | . . . . . . . . . . . 1 . 1 . . . 2 . 1 . . . . . Liberate 3 | . . . . . . . . . . . 1 . 1 . . . 1 . . . . . . . Haulers 1 | . . . . . . . . . . . . . . . . . 1 . . . . . . . Overload 1 | . . . . . . . . . . . . . . . . . . . 1 . . . . . Repair Stations . | . . . . . . . . . . . . . . . . . . . . . . . . . Recycling Units 6 | . 2 . . . . . . . . . . . . . 1 . 2 . . . . . . 1 Reject 4 | . . . . . . . . . . . . . . . 1 . 2 . . . . . . 1 Tunnel 2 | . 2 . . . . . . . . . . . . . . . . . . . . . . . Scanalyzers 1 | . . . . . . . 1 . . . . . . . . . . . . . . . . . Extract 1 | . . . . . . . 1 . . . . . . . . . . . . . . . . . Garrison Access 4 | . . . . . . . 1 . 1 . . . . . . . 2 . . . . . . . Reprogram 3 | . . . . . . . 1 . 1 . . . . . . . 1 . . . . . . . Eject 1 | . . . . . . . . . . . . . . . . . 1 . . . . . . . Data Cores Recovered 2 | . . . . . . . 1 . . . . . . . . . . . 1 . . . . . Used 1 | . . . . . . . 1 . . . . . . . . . . . . . . . . . Hacking Detections 111 | . 7 . 7 . . . 4 2 11 2 9 3 14 2 7 4 8 1 14 1 4 . 2 9 Full Trace Events 9 | . . . . . . . . . . . 2 . 2 . 1 1 1 1 . . . . . 1 Feedback Events 2 | . . . . . . . . . . . . . 1 . . . . . . . . . . 1 Corruption 2 | . . . . . . . . . . . . . 1 . . . . . . . . . . 1 Feedback Blocked . | . . . . . . . . . . . . . . . . . . . . . . . . . Robot Schematics Acquired 5 | . . . . . . . . . . . 2 . . . . . . . . . 3 . . . Robots Built 2 | . . . . . . . . . . . 2 . . . . . . . . . . . . . Authchips 1 | . . . . . . . . . . . 1 . . . . . . . . . . . . . Time 38 | . . . . . . . . . . . 38 . . . . . . . . . . . . . Total Robot Build Rating 6 | . . . . . . . . . . . 6 . . . . . . . . . . . . . Part Schematics Acquired 16 | . . . . . . . 8 . . . 1 . . . . . . . . . 7 . . . Parts Built 1 | . . . . . . . . . . . . . . . . . 1 . . . . . . . Authchips . | . . . . . . . . . . . . . . . . . . . . . . . . . Time 64 | . . . . . . . . . . . . . . . . . 64 . . . . . . . Total Part Build Rating 8 | . . . . . . . . . . . . . . . . . 8 . . . . . . . Parts Repaired 10 | . 3 . 4 . . . . . 1 . . . 1 . . . . . 1 . . . . . Time 380 | . 84 . 140 . . . . . 32 . . . 22 . . . 22 . 80 . . . . . Parts Recycled . | . . . . . . . . . . . . . . . . . . . . . . . . . Recycled Matter 149 | . . . . . . . . . . . . . 149 . . . . . . . . . . . Retrieved Matter . | . . . . . . . . . . . . . . . . . . . . . . . . . Retrieved Components 42 | . 9 . . . . . . . . . . . 6 . 2 . 1 . 20 . . . . 4 Parts Scanalyzed 4 | . . . . . . . 3 . . . 1 . . . . . . . . . . . . . Part Schematics Acquired 4 | . . . . . . . 3 . . . 1 . . . . . . . . . . . . . Parts Damaged . | . . . . . . . . . . . . . . . . . . . . . . . . . Bothacking | -11 -10 -10 -9 -9 -9 -8 -8 -8 -8 -8 -7 -7 -6 -6 -5 -5 -4 -4 -4 -3 -3 -2 -2 -1 ------------ Run | Yrd Mat Min Mat Min Exi Min Mat Gar Mat Gar Fac Gar Fac Gar Fac Gar Fac Gar Fac Res Qua Res Tes Acc Used RIF Installer 7 | . . . . . . . . 1 . 1 . 1 . 2 . 1 . 1 . . . . . . Hotswap 1 | . . . . . . . . . . . . . . 1 . . . . . . . . . . Command Fork 2 | . . . . . . . . . . 1 . . . 1 . . . . . . . . . . Signal Jammer 1 | . . . . . . . . . . . . 1 . . . . . . . . . . . . Alert ID Control 1 | . . . . . . . . . . . . . . . . . . 1 . . . . . . Structural Interface 1 | . . . . . . . . . . . . . . . . 1 . . . . . . . . Robots Hacked 67 | . . . 1 . 4 . . . . . 1 . 13 3 9 5 12 9 7 . 2 . . 1 Non-combat 22 | . . . 1 . 3 . . . . . 1 . 4 . 5 . 3 1 2 . 1 . . 1 Combat 45 | . . . . . 1 . . . . . . . 9 3 4 5 9 8 5 . 1 . . . Robot Hacks Applied 78 | . . . 1 . 4 . . . . . 3 . 15 3 15 5 12 9 8 . 2 . . 1 parse_system 6 | . . . . . 4 . . . . . . . 1 . . 1 . . . . . . . . no_distress 1 | . . . 1 . . . . . . . . . . . . . . . . . . . . . find_chute 3 | . . . . . . . . . . . . . . . 2 . 1 . . . . . . . drop_inventory 2 | . . . . . . . . . . . . . 1 . . . . . . . 1 . . . deconstruct_bot 1 | . . . . . . . . . . . . . . . . . . . 1 . . . . . purge_threat 7 | . . . . . . . . . . . 2 . . . 5 . . . . . . . . . reprogram_traps 1 | . . . . . . . . . . . . . . . 1 . . . . . . . . . summon_haulers 2 | . . . . . . . . . . . . . 1 . 1 . . . . . . . . . map_route 1 | . . . . . . . . . . . . . 1 . . . . . . . . . . . mark_security 1 | . . . . . . . . . . . . . . . 1 . . . . . . . . . disable_scanner 1 | . . . . . . . . . . . . . . . . . . . . . 1 . . . find_garrison 1 | . . . . . . . . . . . . . 1 . . . . . . . . . . . focus_fire 1 | . . . . . . . . . . . . . . . . . 1 . . . . . . . scatter_targeting 3 | . . . . . . . . . . . . . . . . . 2 1 . . . . . . overload_power 2 | . . . . . . . . . . . . . 1 . . . . . 1 . . . . . amplify_resonance 1 | . . . . . . . . . . . . . . . . . 1 . . . . . . . reboot_system 3 | . . . . . . . . . . . . . 1 1 . . 1 . . . . . . . overwrite_iff 12 | . . . . . . . . . . . . . 4 . 3 . 2 2 1 . . . . . streamctrl_low 4 | . . . . . . . . . . . 1 . . . 1 . 1 . . . . . . 1 streamctrl_high 2 | . . . . . . . . . . . . . . . . 1 . . 1 . . . . . formatsys_low 3 | . . . . . . . . . . . . . 1 . . . . . 2 . . . . . formatsys_high 20 | . . . . . . . . . . . . . 3 2 1 3 3 6 2 . . . . . Relay Couplers Released 69 | . . . . . . . . 13 . 8 . 10 . 6 . 10 5 8 2 . 3 . . 4 Ejected 2 | . . . . . . . . . . . . . . . . . 2 . . . . . . . Machine Destruction 64 | . . . . . . . . 13 . 8 . 10 . 6 . 10 3 8 2 . . . . 4 Programmers 3 | . . . . . . . . . . . . . . . . . . . . . 3 . . . Attached 31 | . . . . . . . . . . 1 1 . 4 1 4 4 4 5 4 . 1 . . 2 Fabnet Peak Effective % . | . . . . . . . . . . . . . . . . . . . . . . . . . Robots Rewired 15 | . . . . . . . . 7 . . . . . . 1 3 . 4 . . . . . . Allies Hacked 1 | . . . . . . . . . . . . . . . . . . . 1 . . . . . Hacks Repelled . | . . . . . . . . . . . . . . . . . . . . . . . . . Allies | -11 -10 -10 -9 -9 -9 -8 -8 -8 -8 -8 -7 -7 -6 -6 -5 -5 -4 -4 -4 -3 -3 -2 -2 -1 -------- Run | Yrd Mat Min Mat Min Exi Min Mat Gar Mat Gar Fac Gar Fac Gar Fac Gar Fac Gar Fac Res Qua Res Tes Acc Total Allies 84 | . . . . 4 . . 2 7 1 1 3 1 8 2 7 11 13 13 9 . . . . 2 Largest Group 6 | . . . . 4 4 3 3 5 5 1 2 1 2 2 3 3 4 6 4 . . . . 2 Highest-Rated Group 335 | . . . . 71 71 40 40 134 119 31 42 39 79 58 140 178 191 335 232 . . . . 90 Highest-Rated Ally 95 | . . . . 31 31 16 16 39 39 31 26 39 47 29 64 95 95 64 64 . . . . 45 Total Orders 19 | . . . . . . . . . 1 . . . 6 . 2 1 5 . 4 . . . . . STAY 10 | . . . . . . . . . 1 . . . 3 . 1 1 3 . 1 . . . . . FOLLOW 5 | . . . . . . . . . . . . . 3 . 1 . . . 1 . . . . . AID 4 | . . . . . . . . . . . . . . . . . 2 . 2 . . . . . Ally Attacks 452 | . . . . 13 . . 12 47 22 15 6 19 22 30 24 53 53 72 64 . . . . . Total Damage 11180 | . . . . 72 . . 153 899 538 274 142 210 495 493 491 988 1700 2417 2308 . . . . . Kills 71 | . . . . 3 . . 1 10 6 1 . 2 1 2 2 10 15 12 6 . . . . . Allies Corrupted 8 | . . . . . . . . . . . 1 . . . 2 . 1 3 1 . . . . . Allies Melted 5 | . . . . . . . . . . . . . 2 . . . . 1 2 . . . . . Intel | -11 -10 -10 -9 -9 -9 -8 -8 -8 -8 -8 -7 -7 -6 -6 -5 -5 -4 -4 -4 -3 -3 -2 -2 -1 ------- Run | Yrd Mat Min Mat Min Exi Min Mat Gar Mat Gar Fac Gar Fac Gar Fac Gar Fac Gar Fac Res Qua Res Tes Acc Active Infowar (turns) 16184 | . 861 89 1510 668 421 120 796 1044 . . . . . 1167 1636 1616 1548 1397 1888 27 501 152 120 623 Optics 11103 | . 861 89 . . . . . . . . . . . 1167 1636 1616 1548 1397 1366 27 501 152 120 623 Sensors 1502 | . . . . . . . . . . . . . . . . . . . 275 27 501 149 120 430 Terrain 988 | . . . . . . . . . . . . . . . . . . . 388 . . 41 120 439 Structural 494 | . . . . . . . . . . . . . . . . . . . 494 . . . . . Traps 4559 | . . . 1510 668 421 120 796 1044 . . . . . . . . . . . . . . . . Seismic 1063 | . . . . . . . . . . . . . . . . . 536 527 . . . . . . Cloaking 373 | . . . . . . . . . . . . . . . . . . . . 27 346 . . . ECM 54 | . . . . . . . . . . . . . . . . . . . 24 . . . . 30 Robot Analysis Total 5 | . 3 . 1 . . . 1 . . . . . . . . . . . . . . . . . Derelict Logs Recovered 4 | . . 2 . 2 . . . . . . . . . . . . . . . . . . . . Drone Launches . | . . . . . . . . . . . . . . . . . . . . . . . . . Drone Recoveries . | . . . . . . . . . . . . . . . . . . . . . . . . . Exploration | -11 -10 -10 -9 -9 -9 -8 -8 -8 -8 -8 -7 -7 -6 -6 -5 -5 -4 -4 -4 -3 -3 -2 -2 -1 ------------- Run | Yrd Mat Min Mat Min Exi Min Mat Gar Mat Gar Fac Gar Fac Gar Fac Gar Fac Gar Fac Res Qua Res Tes Acc Turns Passed 27081 | 440 1102 1353 1671 668 421 120 796 2422 938 1415 1038 1585 1822 1476 1636 1616 1548 1397 2194 27 501 152 120 623 Spaces Moved 14128 | 207 530 553 699 351 260 66 318 1063 498 641 558 750 875 704 813 688 734 620 1448 41 476 291 183 761 Core 54 | 6 . . . . . . . . . . . . . . . . . . 48 . . . . . Treads 4746 | 201 530 553 699 351 260 66 318 244 . . . 6 . 1 . 10 331 620 556 . . . . . Legs . | . . . . . . . . . . . . . . . . . . . . . . . . . Wheels 6732 | . . . . . . . . 819 498 641 558 744 875 703 813 678 403 . . . . . . . Hover 2596 | . . . . . . . . . . . . . . . . . . . 844 41 476 291 183 761 Flight . | . . . . . . . . . . . . . . . . . . . . . . . . . Fastest Speed 40 | 50 160 160 160 160 160 160 160 135 150 150 150 160 160 141 141 170 166 166 50 58 43 43 40 40 Average Speed 146 | 156 160 232 167 160 160 160 182 171 150 150 160 161 166 161 160 174 175 166 101 65 75 43 42 41 Slowest Speed 400 | 160 160 240 240 160 160 160 240 320 150 150 165 400 175 320 185 320 240 166 200 156 156 43 43 108 Overloaded Moves . | . . . . . . . . . . . . . . . . . . . . . . . . . Propulsion Burnouts . | . . . . . . . . . . . . . . . . . . . . . . . . . Robots Hopped . | . . . . . . . . . . . . . . . . . . . . . . . . . Potential Cave-ins 8 | . . . . 4 . . . . . . . . . . . . . . . . . . . 4 Cave-ins Triggered . | . . . . . . . . . . . . . . . . . . . . . . . . . Exploration Rate (%) 47 | 12 88 96 45 56 64 28 24 90 48 79 15 85 32 82 28 82 21 64 45 2 39 7 29 28 Regions Visited 24 Branch Regions 6 Pre-discovered Areas 5 | . 2 1 . 1 1 . . . . . . . . . . . . . . . . . . . Known Exits Taken 13 | . . . 1 . . 1 1 . 1 . 1 . 1 . 1 . 1 . 1 1 1 1 1 . Unknown Exits Taken 5 | 1 1 1 . 1 1 . . . . . . . . . . . . . . . . . . . Scrap Searched 3 | . . 1 . 2 . . . . . . . . . . . . . . . . . . . . Spaces Dug 253 | . 7 . . 37 . . . 32 . 14 3 19 17 30 10 51 3 . 3 . 3 . 4 20 Terrain Destroyed 762 | . 19 . 2 60 . . 20 74 15 49 16 39 31 50 60 128 21 74 43 . 3 . 4 54 Melee 26 | . . . . 2 . . . . . . . . . 7 1 6 . . . . 3 . . 7 Projectile 331 | . . . 2 5 . . 1 46 15 49 16 39 27 19 22 16 21 12 19 . . . 4 18 AOE 404 | . 19 . . 53 . . 19 28 . . . . 4 24 37 106 . 62 23 . . . . 29 Terrain Rammed . | . . . . . . . . . . . . . . . . . . . . . . . . . Walls Destroyed . | . . . . . . . . . . . . . . . . . . . . . . . . . Machines Disabled . | . . . . . . . . . . . . . . . . . . . . . . . . . Actions | -11 -10 -10 -9 -9 -9 -8 -8 -8 -8 -8 -7 -7 -6 -6 -5 -5 -4 -4 -4 -3 -3 -2 -2 -1 --------- Run | Yrd Mat Min Mat Min Exi Min Mat Gar Mat Gar Fac Gar Fac Gar Fac Gar Fac Gar Fac Res Qua Res Tes Acc Total 18596 | 264 727 591 1118 422 265 73 488 1461 627 910 646 1014 1150 910 1048 996 914 898 1957 41 572 313 207 984 Wait 1797 | 12 129 7 243 37 1 3 104 136 74 66 25 109 91 41 58 105 58 112 227 . 29 . 1 129 Move 14105 | 206 529 552 698 350 259 65 317 1062 497 640 558 749 874 703 813 687 733 619 1447 40 475 290 182 760 Hop . | . . . . . . . . . . . . . . . . . . . . . . . . . Pick Up 207 | 5 15 6 16 1 . . 13 14 1 11 5 9 15 12 6 16 14 10 17 . 8 3 2 8 Fast Attach 154 | 6 5 1 2 . . . . 10 3 5 3 7 6 6 8 4 8 9 39 . 16 5 3 8 Attach 103 | . 4 . 5 . . . 3 7 . 7 4 2 6 5 7 7 14 8 17 1 . 1 . 5 Detach 63 | . 4 1 1 . . . 2 4 . 5 1 2 3 3 5 4 6 4 12 . 1 2 1 2 Swap 219 | . 3 1 22 6 1 . 9 6 3 5 1 10 13 10 29 24 17 17 25 . 1 4 3 9 Drop 220 | . 7 5 14 3 . . 7 17 6 11 8 15 19 10 10 13 9 11 22 . 16 6 4 7 Fire 1120 | 35 31 13 19 20 . 3 28 131 43 110 41 73 78 61 68 68 53 80 127 . 4 . 5 29 Melee 175 | . . . 29 2 4 . 2 9 . 13 . . . 26 4 11 2 . 16 . 22 2 6 27 Ram . | . . . . . . . . . . . . . . . . . . . . . . . . . Kick . | . . . . . . . . . . . . . . . . . . . . . . . . . Crush 17 | . . 5 . 3 . 2 . . . 1 . . . 2 . . . . 4 . . . . . Escape Stasis 145 | . . . . . . . 2 20 . 34 . 30 4 30 . 22 . . 3 . . . . . Rewire 109 | . . . . . . . . 40 . . . 1 3 1 . 35 . 28 1 . . . . . Trap 162 | . . . 69 . . . 1 5 . 2 . 7 38 . 40 . . . . . . . . . Miscellaneous . | . . . . . . . . . . . . . . . . . . . . . . . . . Route ------- -11/Scrapyard -10/Materials (discovered 4 exits: *Mat x2 / *Min / [*Sub]) -10/Mines (discovered 3 exits: *Mat x2 / [*Sub]) -9/Materials (discovered 4 exits: *Mat x2 / *Min x2) -9/Mines (discovered 3 exits: *Mat x2 / *Exi) -9/Exiles -8/Mines -8/Materials -8/Garrison (discovered 3 exits: *Mat x3) -8/Materials (discovered 2 exits: *Fac / Gar) -8/Garrison (discovered 3 exits: *Fac x3) -7/Factory (discovered 3 exits: *Fac / [*Sto] / Gar) -7/Garrison (discovered 3 exits: *Fac x3) -6/Factory -6/Garrison (discovered 3 exits: *Fac x3) -5/Factory (discovered 3 exits: *Fac / [*Upp] / Gar) -5/Garrison (discovered 3 exits: *Fac x3) -4/Factory (discovered 3 exits: *Res / [*Upp] / Gar) -4/Garrison (discovered 3 exits: *Res x2 / *Fac) -4/Factory -3/Research -3/Quarantine -2/Research -2/Testing -1/Access (discovered 2 exits: *Sur / Com) To Epsilon Eridani History --------- Turn | Location | Event 9 | -11/Scrapyard | Discovered new exit (range 15) 441 | -11/Scrapyard | Entered Materials 442 | -10/Materials | Build established: Mutant 551 | -10/Materials | Discovered new exit (range 13) 661 | -10/Materials | Discovered new exit (range 13) 1028 | -10/Materials | Discovered new exit (range 15) 1338 | -10/Materials | Discovered new exit (range 9) 1447 | -10/Materials | Repaired Lgt. Treads 1480 | -10/Materials | Repaired EM Shotgun 1507 | -10/Materials | Repaired Lgt. Treads 1543 | -10/Materials | Entered Mines 1602 | -10/Mines | Discovered new exit (range 9) 1624 | -10/Mines | Met a Derelict who couldn't figure out how to use a Trap Extractor 1905 | -10/Mines | Learned location of Mines (-9) 1953 | -10/Mines | Discovered new exit (range 9) 2185 | -10/Mines | Discovered new exit (range 10) 2212 | -10/Mines | Learned 4 Materials zone layouts 2896 | -10/Mines | Entered Materials 2896 | -9/Materials | Evolved 2 slots: Propulsion x1, Utility x1 2897 | -9/Materials | Identified exit to Mines 2897 | -9/Materials | Identified exit to Materials 3605 | -9/Materials | Repaired Hrd. Medium Armor Plating 3633 | -9/Materials | Repaired Lgt. Treads 3672 | -9/Materials | Repaired Katana 3822 | -9/Materials | Discovered exit to Mines (range 11) 4292 | -9/Materials | Discovered exit to Materials (range 12) 4346 | -9/Materials | Repaired Hrd. Medium Armor Plating 4567 | -9/Materials | Entered Mines 4568 | -9/Mines | Assembled infested the area 4569 | -9/Mines | Joined a pair of Derelicts in attacking an 0b10 outpost 4577 | -9/Mines | Met a Derelict bent on vengeance 4588 | -9/Mines | Learned 2 Materials zone layouts 4678 | -9/Mines | Learned location of Zion (-6) 4718 | -9/Mines | Discovered exit to Materials (range 9) 4948 | -9/Mines | Assisted by bots powering up and referring to "LRC-V3" 4968 | -9/Mines | Discovered exit to Materials (range 5) 5094 | -9/Mines | Received a Mining Laser from a helpful Derelict 5161 | -9/Mines | Found a hidden stash of uninstalled traps 5219 | -9/Mines | Deemed a non-threat by the Exiles lab entrance 5221 | -9/Mines | Discovered new exit (range 5) 5235 | -9/Mines | Entered Exiles 5235 | -9/Exiles | Accompanied by 4 allies 5277 | -9/Exiles | Met 8R-AWN 5304 | -9/Exiles | Met EX-HEX 5348 | -9/Exiles | Met EX-BIN 5403 | -9/Exiles | Met EX-DEC 5638 | -9/Exiles | Discovered new exit (range 10) 5656 | -9/Exiles | Entered Mines 5656 | -8/Mines | Accompanied by 3 allies 5744 | -8/Mines | Discovered exit to Materials (range 8) 5776 | -8/Mines | Entered Materials 5776 | -8/Materials | Accompanied by 3 allies 5776 | -8/Materials | Evolved 2 slots: Propulsion x1, Utility x1 5933 | -8/Materials | Lost 3 allies 5944 | -8/Materials | Central database locked down 6386 | -8/Materials | Identified exit to Garrison 6572 | -8/Materials | Entered Garrison 6572 | -8/Garrison | Accompanied by 2 allies 6734 | -8/Garrison | Destroyed 7 combat bots 6754 | -8/Garrison | Garrison Relay disabled 6774 | -8/Garrison | Garrison Relay disabled 6864 | -8/Garrison | Triggered checkpoint 6953 | -8/Garrison | Garrison Relay disabled 7058 | -8/Garrison | Triggered checkpoint 7119 | -8/Garrison | Triggered checkpoint 7316 | -8/Garrison | Triggered checkpoint 7404 | -8/Garrison | Garrison Relay disabled 7475 | -8/Garrison | Discovered new exit (range 13) 7620 | -8/Garrison | Triggered checkpoint 8012 | -8/Garrison | Triggered checkpoint 8034 | -8/Garrison | Triggered checkpoint 8225 | -8/Garrison | Installed Relay Interface Framework 8380 | -8/Garrison | Triggered checkpoint 8454 | -8/Garrison | Discovered new exit (range 13) 8584 | -8/Garrison | Triggered checkpoint 8661 | -8/Garrison | Discovered new exit (range 10) 8754 | -8/Garrison | Triggered checkpoint 8806 | -8/Garrison | Triggered checkpoint 8994 | -8/Garrison | Entered Materials 8994 | -8/Materials | Accompanied by 5 allies 9115 | -8/Materials | Repaired Arm. Wheel 9193 | -8/Materials | Build established: Scavenger-Mutant 9346 | -8/Materials | Discovered new exit (range 9) 9613 | -8/Materials | Identified exit to Garrison 9794 | -8/Materials | First assault squad dispatched 9932 | -8/Materials | Entered Garrison 9940 | -8/Garrison | Triggered checkpoint 10000 | -8/Garrison | Triggered checkpoint 10083 | -8/Garrison | Garrison Relay disabled 10220 | -8/Garrison | Triggered checkpoint 10438 | -8/Garrison | Triggered checkpoint 10484 | -8/Garrison | Discovered new exit (range 14) 10519 | -8/Garrison | Expanded RIF knowledge: Command Fork 10590 | -8/Garrison | Build established: Mutant 10649 | -8/Garrison | Triggered checkpoint 10817 | -8/Garrison | Rescued a captive Derelict 10865 | -8/Garrison | Garrison Relay disabled 10932 | -8/Garrison | Discovered new exit (range 15) 11080 | -8/Garrison | Triggered checkpoint 11148 | -8/Garrison | Triggered checkpoint 11161 | -8/Garrison | Build established: Bothacker-Mutant 11203 | -8/Garrison | Discovered new exit (range 11) 11347 | -8/Garrison | Entered Factory 11347 | -7/Factory | Evolved 2 slots: Utility x2 11681 | -7/Factory | Discovered new exit (range 15) 12143 | -7/Factory | Discovered new exit (range 8) 12283 | -7/Factory | Fabricated H-55 Commando? 12385 | -7/Factory | Identified exit to Garrison 12385 | -7/Factory | Entered Garrison 12457 | -7/Garrison | Build established: Mutant 12470 | -7/Garrison | Heavy support dispatched to Factory 12531 | -7/Garrison | Triggered checkpoint 12638 | -7/Garrison | Garrison Relay disabled 12733 | -7/Garrison | Triggered checkpoint 12798 | -7/Garrison | Triggered checkpoint 12907 | -7/Garrison | Triggered checkpoint 13015 | -7/Garrison | Triggered checkpoint 13040 | -7/Garrison | Expanded RIF knowledge: Signal Jamming 13064 | -7/Garrison | Garrison Relay disabled 13138 | -7/Garrison | Discovered new exit (range 15) 13323 | -7/Garrison | Discovered new exit (range 8) 13338 | -7/Garrison | Build established: Bothacker-Mutant 13372 | -7/Garrison | Triggered checkpoint 13524 | -7/Garrison | Rescued a captive Derelict 13811 | -7/Garrison | Triggered checkpoint 13965 | -7/Garrison | Discovered new exit (range 3) 13970 | -7/Garrison | Entered Factory 13970 | -6/Factory | Evolved 2 slots: Utility x1, Weapon x1 14722 | -6/Factory | Found Prototype Launcher 14746 | -6/Factory | Identified Scatter Rocket Array 14796 | -6/Factory | Repaired Hrd. Heavy Armor Plating 15026 | -6/Factory | Build established: Bothacker-Gunner 15346 | -6/Factory | Found Unknown Device 15346 | -6/Factory | Identified Launcher Loader 15493 | -6/Factory | Lost 3 allies 15783 | -6/Factory | Identified exit to Garrison 15792 | -6/Factory | Entered Garrison 15819 | -6/Garrison | Expanded RIF knowledge: Hotswap 15874 | -6/Garrison | Triggered checkpoint 15884 | -6/Garrison | Garrison Relay disabled 15889 | -6/Garrison | Build established: Tank 16014 | -6/Garrison | Triggered checkpoint 16184 | -6/Garrison | Spotted B-75 Beast 16195 | -6/Garrison | Triggered checkpoint 16238 | -6/Garrison | Destroyed B-75 Beast 16362 | -6/Garrison | Triggered checkpoint 16504 | -6/Garrison | Discovered new exit (range 8) 16624 | -6/Garrison | Triggered checkpoint 16690 | -6/Garrison | Garrison Relay disabled 16702 | -6/Garrison | Build established: Mutant 16916 | -6/Garrison | Discovered new exit (range 8) 17023 | -6/Garrison | Build established: Bothacker-Mutant 17130 | -6/Garrison | Discovered new exit (range 20) 17164 | -6/Garrison | Expanded RIF knowledge: Command Fork 17268 | -6/Garrison | Entered Factory 17268 | -5/Factory | Evolved 2 slots: Power x1, Utility x1 17568 | -5/Factory | First assault squad dispatched 17650 | -5/Factory | Build established: Bothacker-Gunner 18168 | -5/Factory | Build established: Bothacker-Tank 18457 | -5/Factory | Discovered new exit (range 8) 18775 | -5/Factory | Build established: Tank 18848 | -5/Factory | Discovered new exit (range 22) 18904 | -5/Factory | Identified exit to Garrison 18904 | -5/Factory | Entered Garrison 19099 | -5/Garrison | Triggered checkpoint 19134 | -5/Garrison | Garrison Relay disabled 19294 | -5/Garrison | Spotted B-75 Beast 19300 | -5/Garrison | Triggered checkpoint 19305 | -5/Garrison | Hijacked Beast 6a control node with streamctrl_high 19352 | -5/Garrison | Lost 3 parts (1p2u) 19364 | -5/Garrison | Lost 3 allies 19421 | -5/Garrison | Triggered checkpoint 19530 | -5/Garrison | Discovered new exit (range 19) 19675 | -5/Garrison | Triggered checkpoint 19976 | -5/Garrison | Build established: Scavenger-Tank 19990 | -5/Garrison | Triggered checkpoint 20034 | -5/Garrison | Lost 3 allies 20062 | -5/Garrison | Triggered checkpoint 20085 | -5/Garrison | Discovered new exit (range 19) 20292 | -5/Garrison | Triggered checkpoint 20362 | -5/Garrison | Expanded RIF knowledge: Structural Interface 20392 | -5/Garrison | Found embedded Infiltrators 20421 | -5/Garrison | Garrison Relay disabled 20496 | -5/Garrison | Discovered new exit (range 12) 20520 | -5/Garrison | Entered Factory 20520 | -4/Factory | Accompanied by 2 allies 20520 | -4/Factory | Evolved 2 slots: Propulsion x2 20731 | -4/Factory | Build established: Botlord-Gunner 21030 | -4/Factory | Discovered new exit (range 9) 21124 | -4/Factory | Discovered new exit (range 6) 21270 | -4/Factory | First assault squad dispatched 21283 | -4/Factory | Build established: Botlord-Tank 21361 | -4/Factory | Fabricated Imp. Heavy Siege Treads? 21404 | -4/Factory | Lost 4 allies 21434 | -4/Factory | Lost 3 parts (1n1u1w) 21474 | -4/Factory | Destroyed 7 combat bots 21717 | -4/Factory | P-70 Sage assimilated allied Smith 7a 21888 | -4/Factory | Spotted B-86 Titan 22010 | -4/Factory | Identified exit to Garrison 22068 | -4/Factory | Entered Garrison 22068 | -4/Garrison | Accompanied by 2 allies 22143 | -4/Garrison | Triggered checkpoint 22192 | -4/Garrison | Rescued a captive Derelict 22195 | -4/Garrison | Rescued a captive Derelict 22223 | -4/Garrison | Learned Research security intel 22260 | -4/Garrison | Garrison Relay disabled 22349 | -4/Garrison | Spotted B-86 Titan 22377 | -4/Garrison | Destroyed B-86 Titan 22540 | -4/Garrison | Triggered checkpoint 22562 | -4/Garrison | Triggered checkpoint 22626 | -4/Garrison | Lost 4 parts (4u) 22712 | -4/Garrison | Expanded RIF knowledge: Alert ID Control 22772 | -4/Garrison | Garrison Relay disabled 22796 | -4/Garrison | Triggered checkpoint 22893 | -4/Garrison | Discovered new exit (range 3) 23007 | -4/Garrison | Lost 5 allies 23026 | -4/Garrison | Triggered checkpoint 23323 | -4/Garrison | Discovered new exit (range 11) 23366 | -4/Garrison | Triggered checkpoint 23418 | -4/Garrison | Discovered new exit (range 6) 23465 | -4/Garrison | Entered Factory 23465 | -4/Factory | Accompanied by 4 allies 23715 | -4/Factory | First assault squad dispatched 23843 | -4/Factory | Repaired Antimatter Cannon 24393 | -4/Factory | Spotted B-86 Titan 24429 | -4/Factory | Destroyed B-86 Titan 24552 | -4/Factory | Spotted B-86 Titan 24584 | -4/Factory | Released all parts (15) 24599 | -4/Factory | Destroyed B-86 Titan 24700 | -4/Factory | System corruption reached 10% 24854 | -4/Factory | Lost 7 parts (1p2n2u2w) 25070 | -4/Factory | Garrison activated, responded to threat 25269 | -4/Factory | Destroyed 9 combat bots 25648 | -4/Factory | Discovered new exit (range 21) 25659 | -4/Factory | Identified exit to Research 25659 | -4/Factory | Entered Research 25659 | -3/Research | Evolved 2 slots: Utility x2 25670 | -3/Research | Discovered new exit (range 22) 25684 | -3/Research | Identified exit to Quarantine 25686 | -3/Research | Entered Quarantine 25697 | -3/Quarantine | Found Alien Artifact 25727 | -3/Quarantine | Found Alien Slashing Weapon 25727 | -3/Quarantine | Identified Sigix Broadsword 26002 | -3/Quarantine | Discovered new exit (range 5) 26004 | -3/Quarantine | Identified exit to Research 26015 | -3/Quarantine | Found Alien Reactor 26163 | -3/Quarantine | Found Sigix Corpse 26170 | -3/Quarantine | Found Sigix Corpse 26187 | -3/Quarantine | Entered Research 26187 | -2/Research | Evolved 2 slots: Propulsion x1, Utility x1 26230 | -2/Research | Found Prototype Processor 26230 | -2/Research | Identified Exp. Signal Interpreter 26258 | -2/Research | Discovered new exit (range 7) 26261 | -2/Research | Identified exit to Testing 26339 | -2/Research | Entered Testing 26412 | -2/Testing | Found Prototype Energy Cannon 26412 | -2/Testing | Identified Cld. Nova Cannon 26419 | -2/Testing | Discovered new exit (range 17) 26443 | -2/Testing | Found Prototype Energy Gun 26445 | -2/Testing | Identified Warp Gun 26458 | -2/Testing | Identified exit to Access 26459 | -2/Testing | Entered Access 26459 | -1/Access | Evolved 2 slots: Utility x2 26499 | -1/Access | Build established: Hacker-Scout 26516 | -1/Access | Identified exit to Command 26699 | -1/Access | Found Powered Armor 26761 | -1/Access | Identified Matter Drive 26820 | -1/Access | Lost 4 parts (1p1n1u1w) 27077 | -1/Access | Discovered new exit (range 7) 27082 | -1/Access | Identified exit to Surface 27082 | *** | Escaped! Last Messages --------------- Relay Coupler [Duelist] (22) >>Seal Access door sealed. 26987_ Relay Coupler [Heavy] tumbles out of Garrison Access. 26987_ Relay Coupler [Duelist] tumbles out of Garrison Access. 26989_ ALERT: Security rotation in progress. 26992_ Dropped Exp. Utility Shielding. 26993_ Acquired Relay Coupler [Heavy]. 27005_ RIF reveals location of hidden door. 27054_ Critical hit (Burn: +37). 27057_ U-05 Engineer builds a Wall. 27064_ Detecting nearby Garrison Access. 27070_ Connecting with Terminal... >>Open(Door) Sealed Barrier opened. 27077_ The Access Shell folds into the floor. 27077_ EXIT=FOUND 27082_ EXIT=IDENTIFIED: SURFACE Map ----- +----------------------------------------------------+ | ?????????????????????????????????????????????????? | | ?????????????????????????????????????????????????? | | ?????????????????????????????????????????????????? | | ?????????????????????????????????????????????????? | | ?????????????????????????????????????????????????? | | ??????????????????????#??????????????????????????? | | ????????????????????????????? ???????????????????? | | ???????????????????????????#?????????????????????? | | ????????????? ???????????????????????????????????? | | ????????????????????????? ???????????????????????? | | ?????????#????????????????????????#??????????????? | | ?????????#????????#? ????????????????????????????? | | ???????????????????#??????? ?????????????????????? | | ???????????#????#??# ????????????#???????????????? | | ?????????????#??##?? ????????????????????????????? | | ?? ? ????????????#??????? ???????#???????????????? | | ?????#???#??????#?????????????#??????????????????? | | ??????????#?#????#??????????"??????#?????????????? | | ????????###????????#????"????"??????????? ???????? | | ?####?????##?#???????????"??????#???#?#??????????? | | ?##??###??#?#????#?#""""""""""#?#????#???????????? | | ?##?#??#??#?????#??# #???????#?????#????? | | ####??????#?##?#???# #???????#?#????????? | | ??????#?##??##????## ##???#???#?????????? | | ???#????#?#????#???# "" #??#???????????????? | | ##?#?????#??#??#???# "@ #??????????????????? | | #?#???????#?#?????## #?#????????????????? | | ######?###?####?#?#; ##??????? ?????????? | | #????#?####???## #????? ?????#??????? | | #?####??#?????#; ###???? ???????????? | | ##??????####??# #?????????????????? | | " #####??#??#??###"" ##? ???? ??????????? | | "" ####????#?##??##"" ##????????#????????? | | " #?????#?????#??#"" #??????????????????? | | #?#??#?##??###?#T #???? ?????????????? | | ??????##?#??###?#"" #?# ???????????????? | | ? ?##??#?##??##?##"" ###???? ??#??#?????? | | +###################"" ###?????#??#???????? | | #?#???????? | | #?????????? | | +######/############################# #??#??????? | | ? ? ?# ??##????##??#????#???###?? ???????????? | | ? # #??###???#????????????????????????????? | | ? ?# #???#??#?#???#???????? ???????????????? | | ? # #######??#?#?????? ????? ?????????????? | | ???# ##????#?#?#???#????"??????? ???#??????? | | ?? # #??###??##???#? ??"??????#????????????? | | ? # #####?#?#?????? ? ??? ??#? ??????????? | | ? # ##? ?"??????????? ?? ????????#????????? | | ? ? ?# ## ? ?????"????????????? ?????????????? | +----------------------------------------------------+ Best States ------------- Heat Dissipation 108 Energy Generation 41 Energy Capacity 1310 Matter Stores 391 Matter Capacity 400 Sight Range 22 Robot Scan Range 16 Terrain Scan Range 24 Terrain Scan Density 110 ECM Strength 2 Cloak Strength 2 Corruption Block 20 Armor Coverage 1200 Resistance: KI 20 Propulsion Shielding 66 Utility Shielding 90 Weapon Cycling 20 Phase Shifting 10 Evasion (%) 76 Targeting Accuracy 8 Target Analysis 6 Recoil Reduction 6 Offensive Hacking 24 Defensive Hacking 26 Relay Coupler Types 4 Relay Coupler Value 68 Authchip Count 2 Trap Extractor Capacity 6 Item Schematics ----------------- Hvy. Assault Cannon | -8/Materials | Scanalyzed Axe | -8/Materials | Scanalyzed Imp. Light Armor Plating | -8/Materials | Scanalyzed Hpw. Tractor Beam | -8/Materials | Extracted Airjet | -8/Materials | Extracted Shock Rifle | -8/Materials | Extracted Med. Battery | -8/Materials | Extracted Pulse Rifle | -8/Materials | Extracted Arm. Leg | -7/Factory | Scanalyzed Exp. EM Disruption Field | -3/Quarantine | Archive Adv. EM Disruption Field | -3/Quarantine | Archive Prc. Energy Filter | -3/Quarantine | Archive Lgt. Antimatter Cannon | -3/Quarantine | Archive Hellfire Missile Launcher | -3/Quarantine | Archive Adv. Kinecellerator | -3/Quarantine | Archive Adv. EM Shield | -3/Quarantine | Archive Robot Schematics ------------------ L-41 Fighter | -7/Factory | Hacked H-55 Commando | -7/Factory | Hacked C-55 Analyst | -3/Quarantine | Archive R-06 Scavenger | -3/Quarantine | Archive G-67 Veteran | -3/Quarantine | Archive Fabricated ------------ H-55 Commando | x2 | -7/Factory | Authchip Imp. Heavy Siege Treads | x1 | -4/Factory | Preloaded Repaired ---------- Lgt. Treads | 50% | -10/Materials EM Shotgun | 36% | -10/Materials Lgt. Treads | 60% | -10/Materials Hrd. Medium Armor Plating | 64% | -9/Materials Lgt. Treads | 53% | -9/Materials Katana | 64% | -9/Materials Hrd. Medium Armor Plating | 60% | -9/Materials Arm. Wheel | 57% | -8/Materials Hrd. Heavy Armor Plating | 49% | -6/Factory Antimatter Cannon | 27% | -4/Factory Alien Tech Used ----------------- Sigix Broadsword Matter Drive Achievements -------------- None Challenges ------------ None Game ------ Seed HypervelocityShieldWarhead Manual? 0 Play Time 03:07:16 Cumulative 1876.8 hours Start 2025.06.29 @ 18:29:48 End 2025.06.29 @ 21:36:19 Sessions 1 Manual Loads 0 Difficulty Rogue Special Mode None Game No. 1248 Rogue 1244 Adventurer 4 Explorer 0 Win Type 0 Total 242 Types 181/11/19/10/3/1/4/8/4/1 Lore% 98 Gallery% 94 Achievement% 98 Wizard Run 0 Options --------- Layout 2 ASCII 0 Keyboard 1 Movement Vi Keybinds 0 Fullscreen 0 Font 24/Terminus Map View 59x48 Zoom Use 0% Tactical HUD 1 Map Filters NONE Filters NONE Steam 1 RUN: b72c8b23-1fff-4ac6-97c5-fca855150f1d